bitfinex/quotes_BTCUSD_20251224
["timestamp","ask_amount","ask_price","bid_price","bid_amount"]
[1766538982624,0.37023589,87674.0,87668.0,0.01144]
[1766538982949,0.35883,87674.0,87668.0,0.01144]
[1766538983102,0.37023589,87674.0,87668.0,0.01144]
[1766538983476,0.35883,87674.0,87668.0,0.01144]
[1766538983626,0.37023589,87674.0,87668.0,0.01144]
[1766538983827,0.35883,87674.0,87668.0,0.01144]
[1766538985545,0.35883,87674.0,87668.0,0.011235]
[1766538988070,0.01140628,87671.0,87668.0,0.011235]
[1766538989256,0.01140615,87672.0,87668.0,0.011235]
[1766538989455,0.34288602,87673.0,87668.0,0.011235]
[1766538989657,0.0114051,87680.0,87669.0,0.06843903]
[1766538989854,0.33148,87679.0,87671.0,0.01140628]
[1766538990263,0.34288523,87679.0,87670.0,0.01140641]
[1766538990442,0.01140536,87678.0,87668.0,0.02264167]
[1766538990676,0.01140536,87678.0,87669.0,0.01140654]
[1766538991260,0.01140549,87677.0,87668.0,0.011235]
[1766538991396,0.01140589,87674.0,87668.0,0.010686]
[1766538991795,0.01140615,87672.0,87668.0,0.010686]
[1766538992195,0.01140628,87671.0,87668.0,0.010686]
[1766538992430,0.01140615,87672.0,87668.0,0.010686]
[1766538993014,0.01140628,87671.0,87668.0,0.010686]
[1766538993377,0.33148,87668.0,87661.0,0.01144]
[1766538993564,0.34288667,87668.0,87661.0,0.01144]
[1766538993939,0.33148,87667.0,87661.0,0.01144]
[1766538995661,0.3428868,87667.0,87661.0,0.01144]
[1766538995857,0.01140693,87666.0,87661.0,0.01144]
[1766538996264,0.3428868,87667.0,87661.0,0.01144]
[1766538996612,0.01140719,87664.0,87661.0,0.01144]
[1766538997261,0.01140719,87664.0,87655.0,0.02281464]
[1766538997475,0.34510771,87660.0,87651.0,0.01140888]
[1766538997903,0.3337,87660.0,87656.0,0.01140823]
[1766538998332,0.3337,87660.0,87657.0,0.0114081]
[1766538998909,0.3337,87660.0,87655.0,0.01140836]
[1766538999127,0.3337,87660.0,87657.0,0.0114081]
[1766539000258,0.3337,87660.0,87655.0,0.06844961]
[1766539000458,0.3337,87660.0,87657.0,0.0114081]
[1766539000639,0.3337,87660.0,87656.0,0.01140823]
[1766539000848,0.3337,87660.0,87655.0,0.01140836]
[1766539001360,0.3337,87660.0,87657.0,0.0114081]
[1766539002567,0.3337,87660.0,87656.0,0.01140823]
[1766539003228,0.3337,87660.0,87655.0,0.01140836]
[1766539003441,0.3337,87660.0,87657.0,0.0114081]
[1766539004763,0.3337,87660.0,87656.0,0.01140823]
[1766539005000,0.32710762,87660.0,87656.0,0.01140823]
[1766539005608,0.32710762,87660.0,87657.0,0.0114081]
[1766539005957,0.32710762,87660.0,87655.0,0.01140836]
[1766539007737,0.32710762,87660.0,87656.0,0.01140823]
[1766539008253,0.32710762,87660.0,87657.0,0.0114081]
[1766539008461,0.32710762,87660.0,87656.0,0.01140823]
[1766539008867,0.3337,87665.0,87657.0,0.0114081]
[1766539009067,0.34510706,87665.0,87656.0,0.01140823]
[1766539009272,0.34510732,87663.0,87654.0,0.01140849]
[1766539009478,0.3337,87663.0,87655.0,0.01140836]
[1766539010228,0.34510732,87663.0,87654.0,0.01140849]
[1766539010664,0.34510745,87662.0,87653.0,0.02284862]
[1766539010870,0.34510745,87662.0,87654.0,0.01144]
[1766539012233,0.3337,87662.0,87654.0,0.01144]
[1766539012795,0.3337,87662.0,87654.0,0.02284849]
[1766539013300,0.3337,87662.0,87656.0,0.01140823]
[1766539014001,0.3337,87662.0,87655.0,0.01140836]
[1766539014298,0.3337,87662.0,87656.0,0.01140823]
[1766539015253,0.3337,87662.0,87657.0,0.0114081]
[1766539016206,0.3337,87660.0,87653.0,0.01144]
[1766539016499,0.01140758,87661.0,87653.0,0.01144]
[1766539016703,0.3337,87660.0,87653.0,0.00026992]
[1766539017206,0.3337,87658.0,87652.0,0.01144]
[1766539017575,0.34510797,87658.0,87652.0,0.01144]
[1766539017776,0.3337,87658.0,87652.0,0.01144]
[1766539018192,0.3337,87658.0,87652.0,0.02284875]
[1766539019336,0.02284901,87663.0,87660.0,0.01140771]
[1766539019538,0.01140536,87678.0,87660.0,0.01140771]
[1766539019539,0.01144,87669.0,87665.0,0.01140706]
[1766539019761,0.3321,87674.0,87665.0,0.01140706]
[1766539019762,0.01144,87670.0,87667.0,0.0114068]
[1766539020061,0.01144,87670.0,87666.0,0.01140693]
[1766539020255,0.01144,87670.0,87667.0,0.0114068]
[1766539020456,0.01144,87670.0,87661.0,0.05703763]
[1766539020657,0.01144,87670.0,87667.0,0.0114068]
[1766539021059,0.01144,87670.0,87663.0,0.01140732]
[1766539021361,0.01144,87670.0,87665.0,0.01140706]
[1766539021511,0.01144,87670.0,87664.0,0.01140719]
[1766539021512,0.34354,87670.0,87664.0,0.01140719]
[1766539023143,0.34354,87670.0,87665.0,0.01140706]
[1766539023362,0.010891,87670.0,87666.0,0.01140693]
[1766539024409,0.010891,87670.0,87667.0,0.0114068]
[1766539024629,0.010891,87670.0,87666.0,0.01140693]
[1766539025051,0.001099,87666.0,87662.0,0.01140745]
[1766539025792,0.02229741,87670.0,87662.0,0.01140745]
[1766539026093,0.02229741,87670.0,87661.0,0.01140758]
[1766539026094,0.010891,87670.0,87661.0,0.01140758]
[1766539026299,0.02229741,87670.0,87662.0,0.01144]
[1766539026443,0.02229741,87670.0,87653.0,0.01140862]
[1766539026444,0.3321,87663.0,87653.0,0.01140862]
[1766539026640,0.3321,87663.0,87655.0,0.01144]
[1766539027179,0.01140745,87662.0,87655.0,0.01144]
[1766539027389,0.34350745,87662.0,87653.0,0.01140862]
[1766539027633,0.3321,87658.0,87649.0,0.02284914]
[1766539027845,0.34350797,87658.0,87649.0,0.02284914]
[1766539028660,0.34350797,87658.0,87648.0,0.01180927]
[1766539028862,0.0114081,87657.0,87650.0,0.01144]
[1766539029253,0.0114081,87657.0,87649.0,0.01140914]
[1766539029461,0.0114081,87657.0,87650.0,0.01144]
[1766539029664,0.3321,87658.0,87650.0,0.02284901]
[1766539031069,0.3321,87658.0,87652.0,0.01140875]
[1766539031281,0.3321,87664.0,87657.0,0.06844799]
[1766539031512,0.3321,87664.0,87659.0,0.01140784]
[1766539031722,0.3321,87664.0,87660.0,0.01140771]
[1766539031922,0.3321,87664.0,87658.0,0.01140797]
[1766539032572,0.01144,87665.0,87643.0,0.04563903]
[1766539032573,0.05704138,87656.0,87643.0,0.04563903]
[1766539032797,0.04564,87663.0,87648.0,0.32668]
[1766539032798,0.03424464,87663.0,87648.0,0.32668]
[1766539032969,0.03424464,87663.0,87640.0,0.22860369]
[1766539032970,4.93e-06,87663.0,87661.0,0.0570379]
[1766539033168,0.3321,87672.0,87665.0,0.01140706]
[1766539033328,0.05811094,87691.0,87662.0,0.01140745]
[1766539033329,4.79e-06,87674.0,87671.0,0.36924768]
[1766539033529,3.8e-06,87680.0,87677.0,0.01140549]
[1766539034100,3.8e-06,87680.0,87676.0,0.01140562]
[1766539034214,3.8e-06,87680.0,87675.0,0.27793575]
[1766539034617,3.8e-06,87680.0,87675.0,0.26653]
[1766539035060,3.8e-06,87680.0,87674.0,0.01144]
[1766539035241,0.01140523,87679.0,87674.0,0.01144]
[1766539035644,0.0114089,87680.0,87674.0,0.01144]
[1766539036989,3.8e-06,87680.0,87674.0,0.01144]
[1766539037546,3.8e-06,87680.0,87675.0,0.01140575]
[1766539040329,0.01140445,87685.0,87681.0,0.01140497]
[1766539040330,0.01144,87685.0,87681.0,0.01140497]
[1766539040931,0.010891,87685.0,87681.0,0.01140497]
[1766539041491,0.010891,87685.0,87682.0,0.01140484]
[1766539044672,0.0002,87687.0,87682.0,0.01140484]
[1766539044673,1e-08,87687.0,87684.0,0.01140458]
[1766539044818,0.01144,87689.0,87687.0,0.00019999]
[1766539045019,0.01109,87689.0,87686.0,0.01140432]
[1766539045688,0.01109,87689.0,87685.0,0.01140445]
[1766539046591,0.01144,87693.0,87686.0,0.01140432]
[1766539047570,0.01144,87693.0,87685.0,0.01140445]
[1766539048604,0.01144,87693.0,87686.0,0.01140432]
[1766539049423,0.01144,87693.0,87684.0,0.01140458]
[1766539050134,0.02284341,87693.0,87684.0,0.01140458]
[1766539050381,0.01144,87693.0,87685.0,0.01140445]
[1766539050574,0.01144,87693.0,87686.0,0.01140432]
[1766539050918,0.01144,87693.0,87687.0,0.01140419]
[1766539051261,0.01144,87693.0,87688.0,0.01140406]
[1766539051418,0.01144,87693.0,87687.0,0.01140419]
[1766539051753,0.01144,87693.0,87688.0,0.01140406]
[1766539051941,0.01144,87693.0,87687.0,0.01140419]
[1766539053567,0.01144,87693.0,87688.0,0.01140406]
[1766539054663,0.01160289,87697.0,87688.0,0.01140406]
[1766539054664,0.02304289,87697.0,87688.0,0.01140406]
[1766539054963,0.01140302,87696.0,87687.0,0.01140419]
[1766539055111,0.01164,87697.0,87687.0,0.01140419]
[1766539055312,0.01164,87697.0,87686.0,0.06842543]
[1766539055313,0.01140302,87696.0,87686.0,0.01140432]
[1766539055512,0.02304289,87697.0,87687.0,0.01140419]
[1766539055731,0.01140328,87694.0,87685.0,0.01140445]
[1766539056133,0.01140315,87695.0,87686.0,0.01140432]
[1766539056335,0.01140328,87694.0,87682.0,0.07986875]
[1766539056546,0.00055,87683.0,87676.0,0.01140562]
[1766539056819,0.36008922,87690.0,87676.0,0.01140562]
[1766539056820,0.01140432,87686.0,87677.0,0.01160549]
[1766539057020,0.01140432,87686.0,87677.0,0.0002]
[1766539057021,0.30307,87685.0,87677.0,0.0002]
[1766539057215,0.30307,87685.0,87677.0,0.01164]
[1766539057667,0.30307,87685.0,87677.0,0.02304549]
[1766539057819,0.30307,87685.0,87678.0,0.01140536]
[1766539058015,0.30307,87685.0,87680.0,0.0114051]
[1766539058263,0.30307,87685.0,87679.0,0.01140523]
[1766539058468,0.30307,87685.0,87680.0,0.0114051]
[1766539058639,0.30307,87685.0,87679.0,0.01140523]
[1766539059479,0.30307,87685.0,87680.0,0.0114051]
[1766539059874,0.30307,87685.0,87677.0,0.01160549]
[1766539060103,0.31447445,87685.0,87677.0,0.0002]
[1766539060415,0.01144,87687.0,87673.0,0.01144]
[1766539060416,0.00055,87677.0,87673.0,0.01144]
[1766539060711,0.01140523,87679.0,87673.0,0.01144]
[1766539060925,0.30307,87679.0,87673.0,0.01144]
[1766539061479,0.30307,87679.0,87673.0,0.02284602]
[1766539061875,0.30307,87679.0,87673.0,0.01144]
[1766539062299,0.30307,87679.0,87673.0,0.02284602]
[1766539063055,0.30307,87679.0,87674.0,0.01140589]
[1766539065328,0.30307,87679.0,87673.0,0.01140602]
[1766539065520,0.30307,87679.0,87674.0,0.01140589]
[1766539067361,0.30307,87679.0,87673.0,0.01140602]
[1766539067557,0.30307,87679.0,87674.0,0.01140589]
[1766539067762,0.30307,87679.0,87672.0,0.02284615]
[1766539068450,0.30307,87679.0,87672.0,0.01144]
[1766539069309,0.31447523,87679.0,87672.0,0.01144]
[1766539069509,0.00055,87672.0,87667.0,0.0114068]
[1766539069712,0.00055,87672.0,87671.0,0.01144]
[1766539069713,2.367e-05,87672.0,87671.0,0.01144]
[1766539070097,0.30307,87677.0,87671.0,0.01144]
[1766539070296,0.302544,87677.0,87673.0,0.01140602]
[1766539070828,0.302544,87677.0,87671.0,0.02284628]
[1766539071974,0.302544,87677.0,87671.0,0.01144]
[1766539072177,0.302544,87677.0,87672.0,0.01140615]
[1766539072912,0.302544,87677.0,87673.0,0.01144]
[1766539076536,0.302544,87677.0,87674.0,0.01144]
[1766539077806,0.302544,87677.0,87670.0,0.01140641]
[1766539077990,0.26663,87697.0,87684.0,0.14199458]
[1766539078158,0.26663,87697.0,87689.0,0.01140393]
[1766539078159,0.0002,87697.0,87689.0,0.01140393]
[1766539078492,0.0002,87697.0,87690.0,0.0228438]
[1766539078792,0.0002,87697.0,87690.0,0.01144]
[1766539079020,0.01140302,87696.0,87690.0,0.01144]
[1766539079230,0.01160289,87697.0,87690.0,0.01144]
[1766539079430,0.01140302,87696.0,87690.0,0.01144]
[1766539079636,0.0002,87697.0,87691.0,0.05701777]
[1766539079758,0.0002,87697.0,87694.0,0.01140328]
[1766539080460,0.0002,87697.0,87692.0,0.01140354]
[1766539080861,0.0002,87697.0,87691.0,0.01140367]
[1766539081111,0.0002,87697.0,87692.0,0.01140354]
[1766539081521,0.0002,87697.0,87693.0,0.01140341]
[1766539081783,0.0002,87697.0,87691.0,0.01140367]
[1766539082466,0.0002,87697.0,87692.0,0.01140354]
[1766539082666,0.01140224,87702.0,87693.0,0.01140341]
[1766539082869,0.01144,87703.0,87695.0,0.01140315]
[1766539083013,0.01144,87703.0,87694.0,0.01140328]
[1766539083014,0.02284211,87703.0,87694.0,0.01140328]
[1766539083432,0.0067758,87703.0,87695.0,0.02398053]
[1766539083635,0.01140146,87708.0,87699.0,0.01140263]
[1766539083833,0.00010744,87708.0,87700.0,0.01144]
[1766539084082,0.01140159,87707.0,87700.0,0.01144]
[1766539084467,0.01140159,87707.0,87700.0,0.011241]
[1766539084468,0.01140172,87706.0,87700.0,0.011241]
[1766539084673,0.01140211,87703.0,87700.0,0.011241]
[1766539085174,0.01140224,87702.0,87700.0,0.01144]
[1766539085385,0.27783224,87702.0,87700.0,0.01144]
[1766539085577,0.26643,87701.0,87693.0,0.0002]
[1766539085780,0.26643,87701.0,87694.0,0.01144]
[1766539086546,0.26643,87701.0,87694.0,0.02284328]
[1766539087664,0.0114025,87700.0,87693.0,0.0002]
[1766539087870,0.01140276,87698.0,87695.0,0.01124]
[1766539088080,0.01140276,87698.0,87695.0,0.01089]
[1766539089341,0.01140276,87698.0,87693.0,0.0002]
[1766539089546,0.01140276,87698.0,87694.0,0.01144]
[1766539089733,0.01140263,87699.0,87694.0,0.01144]
[1766539090354,0.01140276,87698.0,87694.0,0.01144]
[1766539091254,0.01140276,87698.0,87693.0,0.0002]
[1766539091460,0.01140276,87698.0,87695.0,0.01144]
[1766539093070,0.01140263,87699.0,87695.0,0.01144]
[1766539093274,0.01476031,90430.0,87667.0,0.10922]
[1766539093275,0.01140471,87683.0,87667.0,0.10922]
[1766539093658,0.26643,87682.0,87662.0,0.0458]
[1766539093877,0.26643,87679.0,87670.0,0.01140641]
[1766539094276,0.26643,87679.0,87672.0,0.01140615]
[1766539094632,0.265881,87679.0,87672.0,0.01140615]
[1766539095037,0.265881,87679.0,87674.0,0.01140589]
[1766539095236,0.01144,87683.0,87675.0,0.01140575]
[1766539095518,0.00975313,87686.0,87683.0,0.01195471]
[1766539095726,0.01144,87691.0,87683.0,4.901e-05]
[1766539095927,0.01140367,87691.0,87684.0,0.10804]
[1766539096135,0.27783328,87694.0,87684.0,0.10804]
[1766539096303,0.01140341,87693.0,87684.0,0.10804]
[1766539096481,0.0001,87695.0,87689.0,0.01140393]
[1766539096711,0.01144,87699.0,87690.0,0.0114038]
[1766539096864,0.01144,87699.0,87691.0,0.01140367]
[1766539097204,0.01144,87699.0,87690.0,0.0114038]
[1766539097416,0.01150289,87697.0,87688.0,0.11756406]
[1766539099013,0.0001,87697.0,87689.0,0.01140393]
[1766539100632,0.0001,87697.0,87690.0,0.0114038]
[1766539100835,0.0001,87697.0,87689.0,0.01140393]
[1766539101061,0.01150289,87697.0,87688.0,0.11756406]
[1766539102762,0.01150289,87697.0,87688.0,0.10616]
[1766539103156,0.0001,87697.0,87688.0,0.11756406]
[1766539103353,0.01150289,87697.0,87688.0,0.10616]
[1766539103683,0.01150289,87697.0,87688.0,0.11756406]
[1766539103822,0.01140302,87696.0,87688.0,0.10616]
[1766539104362,0.01150289,87697.0,87688.0,0.11756406]
[1766539104557,0.0001,87697.0,87689.0,0.01140393]
[1766539104703,0.0001,87697.0,87688.0,0.11756406]
[1766539104704,0.01150289,87697.0,87688.0,0.11756406]
[1766539105559,0.01140302,87696.0,87688.0,0.10616]
[1766539105716,0.01150289,87697.0,87688.0,0.11756406]
[1766539105917,0.06841972,87694.0,87688.0,0.10616]
[1766539106118,0.06841972,87694.0,87686.0,0.01144]
[1766539106119,0.01140354,87692.0,87686.0,0.01144]
[1766539106329,0.0684213,87692.0,87686.0,0.01144]
[1766539106570,0.01140367,87691.0,87687.0,0.01144]
[1766539106792,0.01140354,87692.0,87687.0,0.01144]
[1766539106949,0.01140367,87691.0,87687.0,0.01144]
[1766539107704,0.01140354,87692.0,87687.0,0.01144]
[1766539107847,0.01140354,87692.0,87688.0,0.01144]
[1766539108050,0.01140341,87693.0,87688.0,0.010891]
[1766539108255,0.27783328,87694.0,87688.0,0.010891]
[1766539108456,0.01140341,87693.0,87688.0,0.010891]
[1766539109206,0.27783328,87694.0,87688.0,0.010891]
[1766539110206,0.26643,87694.0,87688.0,0.010891]
[1766539110753,0.0001,87698.0,87689.0,0.05701969]
[1766539110995,0.0001,87698.0,87694.0,0.001099]
[1766539111377,0.0001,87698.0,87693.0,0.01140341]
[1766539111956,0.0001,87698.0,87694.0,0.01140328]
[1766539112273,0.0001,87698.0,87693.0,0.01140341]
[1766539112487,0.0001,87698.0,87694.0,0.01140328]
[1766539112689,0.01140159,87707.0,87698.0,0.0001]
[1766539112890,0.01140172,87706.0,87698.0,0.0001]
[1766539113236,0.01140224,87702.0,87697.0,0.43290973]
[1766539113466,0.01140211,87703.0,87696.0,0.01144]
[1766539114895,0.01140198,87704.0,87696.0,0.01144]
[1766539115143,0.01140185,87705.0,87696.0,0.02284302]
[1766539115344,0.01140198,87704.0,87696.0,0.02284302]
[1766539116205,0.01140185,87705.0,87696.0,0.02284302]
[1766539116556,0.01140198,87704.0,87696.0,0.01144]
[1766539116701,0.01140185,87705.0,87696.0,0.02284302]
[1766539118760,0.01140198,87704.0,87696.0,0.01144]
[1766539120006,0.01140211,87703.0,87696.0,0.01144]
[1766539120414,0.01140224,87702.0,87696.0,0.01144]
[1766539120614,0.01140237,87701.0,87696.0,0.01134]
[1766539121202,0.21297,87700.0,87696.0,0.01134]
[1766539121403,0.21297,87700.0,87692.0,0.01140354]
[1766539121623,0.21297,87698.0,87693.0,0.01144]
[1766539121834,0.21297,87698.0,87690.0,0.43290973]
[1766539122091,0.01140315,87695.0,87686.0,0.01140432]
[1766539122369,0.01140302,87696.0,87686.0,0.01140432]
[1766539122572,0.01140302,87696.0,87687.0,0.01144]
[1766539122896,0.01140302,87696.0,87687.0,0.01140419]
[1766539123012,0.22437328,87694.0,87688.0,0.01144]
[1766539124262,0.21297,87694.0,87688.0,0.01144]
[1766539124492,0.21297,87694.0,87689.0,0.01140393]
[1766539124638,0.21297,87694.0,87688.0,0.02284406]
[1766539125691,0.21297,87694.0,87688.0,0.01144]
[1766539126287,0.21297,87694.0,87688.0,0.00138458]
[1766539128027,0.21297,87694.0,87688.0,0.01278864]
[1766539128214,0.21297,87694.0,87688.0,0.00138458]
[1766539129133,0.21297,87694.0,87688.0,0.01278864]
[1766539129716,0.21297,87694.0,87688.0,0.00138458]
[1766539130086,0.212421,87694.0,87689.0,0.01140393]
[1766539131179,0.212421,87694.0,87688.0,0.01278864]
[1766539131377,0.22382428,87694.0,87688.0,0.00138458]
[1766539131834,0.22382428,87694.0,87686.0,0.01140432]
[1766539131835,0.01140302,87696.0,87686.0,0.07537]
[1766539132017,0.01140302,87696.0,87688.0,0.01144]
[1766539132218,0.01140315,87695.0,87688.0,0.01144]
[1766539132423,0.01140302,87696.0,87688.0,0.01144]
[1766539132638,0.01140315,87695.0,87688.0,0.01144]
[1766539133098,0.01140302,87696.0,87688.0,0.01144]
[1766539133538,0.01140315,87695.0,87688.0,0.01144]
[1766539134624,0.0001,87698.0,87689.0,0.01140393]
[1766539134625,0.21307,87698.0,87689.0,0.01140393]
[1766539134830,0.21307,87698.0,87689.0,0.02284393]
[1766539135228,0.01140289,87697.0,87689.0,0.02284393]
[1766539135617,0.01140289,87697.0,87689.0,0.01144]
[1766539136167,0.01140302,87696.0,87689.0,0.01144]
[1766539136378,0.01140289,87697.0,87689.0,0.01144]
[1766539136982,0.22437289,87697.0,87689.0,0.01144]
[1766539137358,0.01140302,87696.0,87687.0,0.01140419]
[1766539137561,0.22437315,87695.0,87688.0,0.01144]
[1766539137729,0.21297,87695.0,87688.0,0.01144]
[1766539138645,0.01140341,87693.0,87684.0,0.01140458]
[1766539138805,0.01140341,87693.0,87687.0,0.01144]
[1766539139200,0.21412341,87693.0,87687.0,0.01144]
[1766539140233,0.20272,87693.0,87687.0,0.01144]
[1766539140863,0.21412341,87693.0,87687.0,0.01144]
[1766539141034,0.01140354,87692.0,87687.0,0.01144]
[1766539141376,0.20272,87692.0,87683.0,0.01145372]
[1766539141613,0.20272,87691.0,87687.0,0.01144]
[1766539142151,0.01140354,87692.0,87687.0,0.01144]
[1766539142406,0.01140341,87693.0,87687.0,0.01144]
[1766539142569,0.01140354,87692.0,87687.0,0.01144]
[1766539142779,0.01140341,87693.0,87687.0,0.01144]
[1766539144183,0.01140328,87694.0,87685.0,0.01140445]
[1766539144431,0.01140328,87694.0,87687.0,0.01144]
[1766539145036,0.20272,87697.0,87688.0,0.01140406]
[1766539145236,0.21412289,87697.0,87688.0,0.01140406]
[1766539145442,0.07985562,87700.0,87697.0,0.00055]
[1766539145443,0.01144,87700.0,87697.0,0.00055]
[1766539145790,0.01144,87705.0,87697.0,0.01140289]
[1766539145954,0.02284185,87705.0,87696.0,0.01140302]
[1766539146154,0.21416,87705.0,87697.0,0.01140289]
[1766539146332,0.22556185,87705.0,87696.0,0.01140302]
[1766539146543,0.01140198,87704.0,87693.0,0.06841989]
[1766539146713,0.21412263,87699.0,87689.0,0.01140393]
[1766539146907,0.01140276,87698.0,87690.0,0.01144]
[1766539147105,0.21412276,87698.0,87690.0,0.01144]
[1766539147308,0.20272,87698.0,87690.0,0.01144]
[1766539147508,0.20272,87698.0,87691.0,0.01140367]
[1766539148968,0.20217,87698.0,87692.0,0.01140354]
[1766539149566,0.20217,87698.0,87690.0,0.0228438]
[1766539150081,0.20217,87698.0,87691.0,0.01140367]
[1766539150301,0.20217,87698.0,87692.0,0.01140354]
[1766539150500,0.20217,87698.0,87691.0,0.01140367]
[1766539151099,0.20217,87698.0,87692.0,0.01140354]
[1766539151501,0.20217,87698.0,87691.0,0.01140367]
[1766539151725,0.20217,87698.0,87692.0,0.01140354]
[1766539151911,0.20217,87698.0,87694.0,0.01140328]
[1766539152226,0.20272,87704.0,87696.0,0.01140302]
[1766539152546,0.20272,87704.0,87695.0,0.01140315]
[1766539152547,0.21412198,87704.0,87695.0,0.01140315]
[1766539154817,0.000549,87695.0,87692.0,0.01140354]
[1766539155196,0.000549,87695.0,87692.0,0.06842072]
[1766539155395,0.20272,87702.0,87692.0,0.06842072]
[1766539155935,0.20272,87702.0,87695.0,0.01140315]
[1766539156095,0.000549,87695.0,87694.0,0.01140328]
[1766539156432,0.20272,87702.0,87694.0,0.01140328]
[1766539157350,0.21412224,87702.0,87693.0,0.01140341]
[1766539157792,0.21412224,87702.0,87691.0,0.05701789]
[1766539157932,0.0798517,87705.0,87690.0,0.01144]
[1766539157933,0.000549,87693.0,87690.0,0.01144]
[1766539158138,0.01140302,87696.0,87686.0,0.01140432]
[1766539158323,0.01140302,87696.0,87688.0,0.01144]
[1766539158524,0.21412289,87697.0,87688.0,0.02284406]
[1766539158908,0.20272,87697.0,87688.0,0.02284406]
[1766539159141,0.21412289,87697.0,87689.0,0.01140393]
[1766539159324,0.21412289,87697.0,87688.0,0.02284406]
[1766539159739,0.20272,87697.0,87689.0,0.01140393]
[1766539160344,0.20272,87696.0,87688.0,0.01144]
[1766539160810,0.20272,87696.0,87689.0,0.01140393]
[1766539161011,0.20272,87696.0,87690.0,0.0114038]
[1766539162932,0.20272,87696.0,87689.0,0.01140393]
[1766539163985,0.20272,87696.0,87690.0,0.0114038]
[1766539164133,0.20272,87696.0,87688.0,0.02284406]
[1766539164330,0.000549,87690.0,87688.0,0.02284406]
[1766539164563,2.409e-05,87690.0,87688.0,0.02284406]
[1766539164806,0.20272,87693.0,87688.0,0.02284406]
[1766539165478,0.20272,87693.0,87683.0,0.01145372]
[1766539165682,0.20272,87687.0,87680.0,0.0114051]
[1766539165811,0.202195,87687.0,87681.0,0.06842945]
[1766539166016,0.202195,87687.0,87683.0,0.01140471]
[1766539166529,0.202195,87687.0,87676.0,0.06843365]
[1766539166731,0.000549,87683.0,87679.0,0.02284523]
[1766539166938,0.202195,87687.0,87679.0,0.02284523]
[1766539167137,0.202195,87687.0,87680.0,0.0114051]
[1766539167316,0.202195,87687.0,87679.0,0.02284523]
[1766539167518,0.21359919,87687.0,87679.0,0.01144]
[1766539167738,0.01140432,87686.0,87679.0,0.01144]
[1766539168463,0.21359919,87687.0,87679.0,0.01144]
[1766539168837,0.21359919,87687.0,87674.0,0.01140589]
[1766539168838,0.20268,87683.0,87672.0,0.01140615]
[1766539169062,0.21408549,87677.0,87669.0,0.01144]
[1766539169245,0.20268,87674.0,87666.0,0.01140693]
[1766539169445,0.20268,87674.0,87664.0,0.06844252]
[1766539169674,0.21408615,87672.0,87661.0,0.01140758]
[1766539169878,0.21408615,87672.0,87660.0,0.01140771]
[1766539169879,0.20268,87670.0,87660.0,0.01140771]
[1766539170079,0.20268,87670.0,87662.0,0.01140745]
[1766539170280,0.20268,87670.0,87665.0,0.05703498]
[1766539170513,0.20268,87670.0,87666.0,0.01140693]
[1766539170725,0.20204074,87670.0,87666.0,0.01140693]
[1766539171262,0.20268,87678.0,87673.0,0.01140602]
[1766539171467,0.0002,87680.0,87670.0,0.06898846]
[1766539171468,0.0002,87680.0,87674.0,0.01140589]
[1766539171782,0.0002,87680.0,87673.0,0.01140602]
[1766539172202,0.0002,87680.0,87674.0,0.01140589]
[1766539172607,0.0002,87680.0,87676.0,0.01140562]
[1766539172844,0.0002,87680.0,87677.0,0.01140549]
[1766539173405,0.0002,87680.0,87673.0,0.01140602]
[1766539173590,0.0002,87680.0,87674.0,0.01140589]
[1766539173794,0.0002,87680.0,87676.0,0.01140562]
[1766539174005,0.0002,87680.0,87675.0,0.01140575]
[1766539174639,0.0002,87680.0,87672.0,0.01140615]
[1766539174840,0.20288,87680.0,87673.0,0.01140602]
[1766539175254,0.20288,87680.0,87674.0,0.01140589]
[1766539175709,0.20233,87680.0,87674.0,0.01140589]
[1766539177016,0.20233,87680.0,87675.0,0.01140575]
[1766539177199,0.20233,87680.0,87674.0,0.01140589]
[1766539177410,0.20233,87680.0,87675.0,0.01140575]
[1766539177611,0.20233,87680.0,87676.0,0.01140562]
[1766539177830,0.20233,87680.0,87674.0,0.01140589]
[1766539178389,0.20233,87680.0,87675.0,0.01140575]
[1766539178823,0.20233,87680.0,87674.0,0.01140589]
[1766539179196,0.20233,87680.0,87675.0,0.01140575]
[1766539180982,0.20233,87680.0,87676.0,0.01140562]
[1766539181161,0.01144,87681.0,87676.0,0.01140562]
[1766539181818,0.01144,87681.0,87677.0,0.01140549]
[1766539182231,0.01144,87681.0,87678.0,0.01140536]
[1766539182462,0.01144,87681.0,87676.0,0.01140562]
[1766539182673,0.01144,87681.0,87677.0,0.01140549]
[1766539183102,0.01144,87681.0,87678.0,0.01140536]
[1766539183547,0.01144,87681.0,87677.0,0.01140549]
[1766539185463,0.01144,87681.0,87675.0,0.01140575]
[1766539186332,0.01144,87681.0,87676.0,0.01140562]
[1766539187505,0.01144,87681.0,87675.0,0.01140575]
[1766539187709,0.01144,87681.0,87676.0,0.01140562]
[1766539188343,0.01144,87681.0,87674.0,0.01140589]
[1766539188554,0.01144,87681.0,87672.0,0.05703065]
[1766539188555,0.01144,87681.0,87672.0,0.01140615]
[1766539188763,0.02284497,87681.0,87673.0,0.01140602]
[1766539188963,0.01144,87681.0,87674.0,0.01140589]
[1766539189394,0.02284497,87681.0,87673.0,0.01140602]
[1766539189595,0.000549,87674.0,87672.0,0.01140615]
[1766539189831,0.01144,87681.0,87674.0,0.01140589]
[1766539190243,0.19562,87683.0,87682.0,0.01140484]
[1766539190244,0.01144,87683.0,87682.0,0.01140484]
[1766539190519,0.0002,87691.0,87682.0,0.08252484]
[1766539190683,0.01160367,87691.0,87682.0,0.07112]
[1766539190879,0.0002,87691.0,87683.0,0.01140471]
[1766539191726,0.000549,87683.0,87682.0,0.07112]
[1766539191979,0.01140419,87687.0,87678.0,0.01140536]
[1766539192144,0.00055,87682.0,87675.0,0.07082]
[1766539192343,0.00055,87682.0,87675.0,0.08222575]
[1766539192508,0.01140445,87685.0,87675.0,0.08222575]
[1766539192710,0.01140432,87686.0,87677.0,0.01140549]
[1766539192909,0.26404378,87689.0,87677.0,0.01140549]
[1766539193131,0.26404378,87689.0,87678.0,0.01140536]
[1766539193733,0.01140432,87686.0,87677.0,0.01140549]
[1766539193935,0.01140419,87687.0,87678.0,0.08164536]
[1766539194117,0.20702393,87689.0,87680.0,0.0114051]
[1766539194330,0.01140406,87688.0,87679.0,0.01140523]
[1766539194644,0.01144,87687.0,87679.0,0.01140523]
[1766539194825,0.01140432,87686.0,87678.0,0.08164536]